fUSD/lending_fUSD_20240919
["ID","MTS","AMOUNT","RATE_DAILY","PERIOD"]
[338548828,1726729846660,-593.87,0.00013164,2]
[338548829,1726729846670,-728.94,0.00013164,2]
[338548830,1726729846681,-590.47,0.00013164,2]
[338548831,1726729846692,-500.0,0.00013164,2]
[338548832,1726729846704,-870.73,0.00013164,2]
[338548833,1726729846714,-977.17,0.00013164,2]
[338548834,1726729846726,-642.86,0.00013164,2]
[338548835,1726729846738,-500.0,0.00013164,2]
[338548836,1726729846748,-984.4,0.00013164,2]
[338548837,1726729846759,-551.1,0.00013164,2]
[338548838,1726729846772,-500.0,0.00013164,2]
[338548839,1726729846784,-500.0,0.00013164,2]
[338548840,1726729846796,-692.55,0.00013164,2]
[338548841,1726729846807,-500.0,0.00013164,2]
[338548842,1726729846818,-500.0,0.00013164,2]
[338548843,1726729846831,-587.48,0.00013164,2]
[338548844,1726729846844,-500.0,0.00013164,2]
[338548845,1726729846856,-500.0,0.00013164,2]
[338548846,1726729846868,-597.14,0.00013164,2]
[338548847,1726729846878,-945.87,0.00013164,2]
[338548848,1726729846891,-572.54,0.00013164,2]
[338548849,1726729846902,-500.0,0.00013164,2]
[338548850,1726729846913,-500.0,0.00013164,2]
[338548851,1726729846924,-598.08,0.00013164,2]
[338548852,1726729846935,-628.67,0.00013164,2]
[338548853,1726729846946,-721.47,0.00013164,2]
[338548854,1726729846956,-5070.49511886,0.00013164,2]
[338548855,1726729846968,-156.95775071,0.00013164,2]
[338548856,1726729846979,-1500.0,0.00013167,2]
[338548857,1726729846990,-150.0,0.0001317,2]
[338548858,1726729847001,-150.0,0.00013172,2]
[338548859,1726729847012,-150.0,0.00013172,2]
[338548860,1726729847024,-371.99471297,0.00013173,2]
[338548861,1726729847035,-150.0,0.00013173,2]
[338548862,1726729847047,-150.0,0.00013173,2]
[338548863,1726729847058,-150.0,0.00013174,2]
[338548864,1726729847069,-150.0,0.00013178,2]
[338548865,1726729847080,-150.0,0.0001318,2]
[338548866,1726729847091,-150.0,0.00013181,2]
[338548867,1726729847102,-150.0,0.00013184,2]
[338548868,1726729847113,-150.0,0.00013184,2]
[338548869,1726729847124,-150.0,0.00013185,2]
[338548870,1726729847137,-1500.0,0.00013188,2]
[338548871,1726729847147,-1500.0,0.0001319,2]
[338548872,1726729847158,-150.0,0.00013191,2]
[338548873,1726729847170,-150.0,0.00013192,2]
[338548874,1726729847182,-150.0,0.00013198,2]
[338548875,1726729847192,-150.0,0.000132,2]
[338548876,1726729847203,-753.25,0.000132,2]
[338548877,1726729847213,-753.25,0.000132,2]
[338548878,1726729847225,-300.0,0.00013202,2]
[338548879,1726729847236,-150.0,0.00013202,2]
[338548880,1726729847248,-150.0,0.00013207,2]
[338548881,1726729847259,-150.0,0.00013208,2]
[338548882,1726729847271,-150.0,0.00013209,2]
[338548883,1726729847284,-150.0,0.00013212,2]
[338548884,1726729847294,-150.0,0.00013215,2]
[338548885,1726729847305,-150.0,0.00013215,2]
[338548886,1726729847316,-150.0,0.00013216,2]
[338548887,1726729847327,-150.0,0.0001322,2]
[338548888,1726729847340,-150.0,0.00013222,2]
[338548889,1726729847352,-1500.0,0.00013222,2]
[338548890,1726729847366,-150.0,0.00013224,2]
[338548891,1726729847379,-150.0,0.00013226,2]
[338548892,1726729847390,-150.0,0.00013231,2]
[338548893,1726729847400,-1500.0,0.00013232,2]
[338548894,1726729847411,-150.0,0.00013234,2]
[338548895,1726729847422,-150.0,0.00013238,2]
[338548896,1726729847432,-1500.0,0.0001324,2]
[338548897,1726729847446,-150.0,0.00013242,2]
[338548898,1726729847458,-150.0,0.00013244,2]
[338548899,1726729847469,-150.0,0.00013247,2]
[338548900,1726729847480,-150.0,0.00013248,2]
[338548901,1726729847491,-1500.0,0.00013248,2]
[338548902,1726729847503,-150.0,0.00013253,2]
[338548903,1726729847514,-150.0,0.00013253,2]
[338548904,1726729847525,-1500.0,0.00013255,2]
[338548905,1726729847537,-150.0,0.00013257,2]
[338548906,1726729847547,-150.0,0.00013257,2]
[338548907,1726729847558,-18533.10320822,0.00013258,2]
[338548908,1726729847570,-150.0,0.00013259,2]
[338548909,1726729847581,-1500.0,0.00013261,2]
[338548910,1726729847591,-150.0,0.00013263,2]
[338548911,1726729847602,-150.0,0.00013264,2]
[338548912,1726729847612,-150.0,0.00013264,2]
[338548913,1726729847623,-421.86233158,0.00013264,2]
[338548914,1726729847635,-150.0,0.00013266,2]
[338548915,1726729847646,-150.0,0.00013266,2]
[338548916,1726729847657,-150.0,0.00013273,2]
[338548917,1726729847667,-1500.0,0.00013281,2]
[338548918,1726729847678,-1500.0,0.00013282,2]
[338548919,1726729847690,-150.0,0.00013284,2]
[338548920,1726729847701,-150.0,0.00013287,2]
[338548921,1726729847714,-150.0,0.00013288,2]
[338548922,1726729847726,-150.0,0.0001329,2]
[338548923,1726729847737,-150.0,0.00013292,2]
[338548924,1726729847748,-150.0,0.00013293,2]
[338548925,1726729847759,-150.0,0.00013294,2]
[338548926,1726729847770,-1500.0,0.00013294,2]
[338548927,1726729847781,-150.0,0.00013295,2]
[338548928,1726729847793,-150.0,0.00013298,2]
[338548929,1726729847803,-150.0,0.00013298,2]
[338548930,1726729847816,-845.02,0.000133,2]
[338548931,1726729847827,-753.25,0.000133,2]
[338548932,1726729847838,-753.25,0.000133,2]
[338548933,1726729847849,-753.25,0.000133,2]
[338548934,1726729847860,-753.25,0.000133,2]
[338548935,1726729847872,-753.25,0.000133,2]
[338548936,1726729847884,-150.0,0.000133,2]
[338548937,1726729847904,-150.0,0.000133,2]
[338548938,1726729847915,-753.25,0.000133,2]
[338548939,1726729847925,-1500.0,0.000133,2]
[338548940,1726729848525,-753.25,0.000133,2]
[338548941,1726729848547,-150.0,0.00013301,2]
[338548942,1726729848565,-150.0,0.00013303,2]
[338548943,1726729848585,-150.0,0.00013307,2]
[338548944,1726729848597,-150.0,0.00013308,2]
[338548945,1726729848607,-150.0,0.00013311,2]
[338548946,1726729848617,-150.0,0.00013317,2]
[338548947,1726729848626,-150.0,0.00013317,2]
[338548948,1726729848637,-150.0,0.0001332,2]
[338548949,1726729848646,-150.0,0.00013321,2]
[338548950,1726729848656,-150.0,0.00013321,2]
[338548951,1726729848665,-150.0,0.00013321,2]
[338548952,1726729848675,-150.0,0.00013322,2]
[338548953,1726729848685,-150.0,0.00013325,2]
[338548954,1726729848695,-150.0,0.00013326,2]
[338548955,1726729848704,-150.0,0.00013327,2]
[338548956,1726729848714,-150.0,0.0001333,2]
[338548957,1726729848723,-150.0,0.00013351,2]
[338548958,1726729848733,-150.0,0.00013356,2]
[338548959,1726729848742,-150.0,0.0001337,2]
[338548960,1726729848751,-150.0,0.0001337,2]
[338548961,1726729848761,-150.0,0.0001337,2]
[338548962,1726729848770,-428.09,0.0001337,2]
[338548963,1726729848779,-150.0,0.0001337,2]
[338548964,1726729848788,-150.0,0.0001337,2]
[338548965,1726729848798,-150.0,0.0001337,2]
[338548966,1726729848807,-357.94,0.0001337,2]
[338548967,1726729848816,-150.0,0.0001337,2]
[338548968,1726729848826,-150.0,0.0001337,2]
[338548969,1726729848835,-357.94,0.0001337,2]
[338548970,1726729848845,-150.0,0.0001337,2]
[338548971,1726729848854,-150.0,0.0001337,2]
[338548972,1726729848864,-150.0,0.0001337,2]
[338548973,1726729848873,-150.0,0.0001337,2]
[338548974,1726729848884,-150.0,0.0001337,2]
[338548975,1726729848893,-150.0,0.0001337,2]
[338548976,1726729848902,-428.09,0.0001337,2]
[338548977,1726729848912,-944.7,0.0001337,2]
[338548978,1726729848922,-150.0,0.0001337,2]
[338548979,1726729848931,-150.0,0.0001337,2]
[338548980,1726729848941,-150.0,0.0001337,2]
[338548981,1726729848951,-428.09,0.0001337,2]
[338548982,1726729848960,-150.0,0.0001337,2]
[338548983,1726729848970,-357.94,0.0001337,2]
[338548984,1726729848980,-150.0,0.0001337,2]
[338548985,1726729848990,-150.0,0.0001337,2]
[338548986,1726729848999,-150.0,0.0001337,2]
[338548987,1726729849009,-150.0,0.0001337,2]
[338548988,1726729849018,-150.0,0.0001337,2]
[338548989,1726729849028,-150.0,0.0001337,2]
[338548990,1726729849038,-428.09,0.0001337,2]
[338548991,1726729849048,-357.94,0.0001337,2]
[338548992,1726729849058,-150.0,0.0001337,2]
[338548993,1726729849068,-150.0,0.0001337,2]
[338548994,1726729849078,-428.09,0.0001337,2]
[338548995,1726729849087,-150.0,0.0001337,2]
[338548996,1726729849096,-150.0,0.0001337,2]
[338548997,1726729849106,-150.0,0.0001337,2]
[338548998,1726729849115,-150.0,0.0001337,2]
[338548999,1726729849124,-357.94,0.0001337,2]
[338549000,1726729849135,-150.0,0.0001337,2]
[338549001,1726729849144,-150.0,0.0001337,2]
[338549002,1726729849154,-150.0,0.0001337,2]
[338549003,1726729849164,-150.0,0.0001337,2]
[338549004,1726729849174,-357.94,0.0001337,2]
[338549005,1726729849183,-150.0,0.0001337,2]
[338549006,1726729849193,-150.0,0.0001337,2]
[338549007,1726729849202,-150.0,0.0001337,2]
[338549008,1726729849211,-428.09,0.0001337,2]
[338549009,1726729849220,-150.0,0.0001337,2]
[338549010,1726729849230,-150.0,0.0001337,2]
[338549011,1726729849239,-428.09,0.0001337,2]
[338549012,1726729849249,-150.0,0.0001337,2]
[338549013,1726729849258,-150.0,0.0001337,2]
[338549014,1726729849267,-357.94,0.0001337,2]
[338549015,1726729849277,-150.0,0.0001337,2]
[338549016,1726729849286,-150.0,0.0001337,2]
[338549017,1726729849296,-428.09,0.0001337,2]
[338549018,1726729849305,-150.0,0.0001337,2]
[338549019,1726729849315,-150.0,0.0001337,2]
[338549020,1726729849325,-150.0,0.0001337,2]
[338549021,1726729849334,-150.0,0.0001337,2]
[338549022,1726729849343,-150.0,0.0001337,2]
[338549023,1726729849353,-150.0,0.0001337,2]
[338549024,1726729849364,-150.0,0.0001337,2]
[338549025,1726729849374,-357.94,0.0001337,2]
[338549026,1726729849383,-150.0,0.0001337,2]
[338549027,1726729849392,-150.0,0.0001337,2]
[338549028,1726729849403,-150.0,0.0001337,2]
[338549029,1726729849413,-150.0,0.0001337,2]
[338549030,1726729849423,-428.09,0.0001337,2]
[338549031,1726729849432,-357.94,0.0001337,2]
[338549032,1726729849443,-316.41,0.0001337,2]
[338549033,1726729849452,-302.43,0.0001337,2]
[338549034,1726729849461,-150.0,0.0001337,2]
[338549035,1726729849470,-150.0,0.0001337,2]
[338549036,1726729849480,-150.0,0.0001337,2]
[338549037,1726729849489,-441.3,0.0001337,2]
[338549038,1726729849498,-150.0,0.0001337,2]
[338549039,1726729849508,-150.0,0.0001337,2]
[338549040,1726729849517,-150.0,0.0001337,2]
[338549041,1726729849527,-150.0,0.0001337,2]
[338549042,1726729849537,-150.0,0.0001337,2]
[338549043,1726729849548,-150.0,0.0001337,2]
[338549044,1726729849557,-150.0,0.0001337,2]
[338549045,1726729849568,-517.79,0.0001337,2]
[338549046,1726729849578,-150.0,0.0001337,2]
[338549047,1726729849587,-150.0,0.0001337,2]
[338549048,1726729849597,-308.43,0.0001337,2]
[338549049,1726729849606,-302.99,0.0001337,2]
[338549050,1726729849616,-357.94,0.0001337,2]
[338549051,1726729849625,-150.0,0.0001337,2]
[338549052,1726729849636,-150.0,0.0001337,2]
[338549053,1726729849645,-357.94,0.0001337,2]
[338549054,1726729849655,-150.0,0.0001337,2]
[338549055,1726729849664,-357.94,0.0001337,2]
[338549056,1726729849674,-428.09,0.0001337,2]
[338549057,1726729849683,-158.38,0.0001337,2]
[338549058,1726729849693,-150.0,0.0001337,2]
[338549059,1726729849706,-357.94,0.0001337,2]
[338549060,1726729849716,-150.0,0.00013378,2]
[338549061,1726729849727,-150.0,0.00013385,2]
[338549062,1726729849737,-150.0,0.00013389,2]
[338549063,1726729849747,-291.23320283,0.0001339,2]
[338549064,1726729849758,-342.33076862,0.0001339,2]
[338549065,1726729849768,-150.0,0.00013391,2]
[338549066,1726729849778,-150.0,0.00013404,2]
[338549067,1726729849788,-150.0,0.00013406,2]
[338549068,1726729849799,-150.0,0.00013432,2]
[338549069,1726729849809,-150.0,0.00013433,2]
[338549070,1726729849819,-420.8255,0.00013437,2]
[338549071,1726729849830,-500.0,0.00013437,2]
[338549072,1726729849839,-500.0,0.00013437,2]
[338549073,1726729849850,-532.60199536,0.00013437,2]
[338549074,1726729849860,-500.0,0.00013437,2]
[338549075,1726729849870,-500.0,0.00013437,2]
[338549076,1726729849880,-873.42,0.00013437,2]
[338549077,1726729849891,-1571.64,0.00013437,2]
[338549078,1726729849901,-500.0,0.00013437,2]
[338549079,1726729849911,-1894.25,0.00013437,2]
[338549080,1726729849921,-500.0,0.00013437,2]
[338549081,1726729849931,-796.27,0.00013437,2]
[338549082,1726729849942,-500.0,0.00013437,2]
[338549083,1726729849952,-500.0,0.00013437,2]
[338549084,1726729849962,-500.0,0.00013437,2]
[338549085,1726729849972,-500.0,0.00013437,2]
[338549086,1726729849982,-1379.99,0.00013437,2]
[338549087,1726729849992,-572.76,0.00013437,2]
[338549088,1726729850002,-514.92,0.00013437,2]
[338549089,1726729850012,-644.66,0.00013437,2]
[338549090,1726729850022,-500.0,0.00013437,2]
[338549091,1726729850033,-830.39,0.00013437,2]
[338549092,1726729850043,-2243.4,0.00013437,2]
[338549093,1726729850052,-500.0,0.00013437,2]
[338549094,1726729850062,-500.0,0.00013437,2]
[338549095,1726729850072,-892.42,0.00013437,2]
[338549096,1726729850082,-677.84,0.00013437,2]
[338549097,1726729850092,-500.0,0.00013437,2]
[338549098,1726729850102,-500.0,0.00013437,2]
[338549099,1726729850112,-1022.75,0.00013437,2]
[338549100,1726729850122,-500.0,0.00013437,2]
[338549101,1726729850132,-1148.5,0.00013437,2]
[338549102,1726729850142,-500.0,0.00013437,2]
[338549103,1726729850152,-500.0,0.00013437,2]
[338549104,1726729850162,-500.0,0.00013437,2]
[338549105,1726729850172,-579.43,0.00013437,2]
[338549106,1726729850182,-1150.23,0.00013437,2]
[338549107,1726729850193,-483.53618741,0.00013437,2]
[338549108,1726729850202,-500.0,0.00013437,2]
[338549109,1726729850212,-500.0,0.00013437,2]
[338549110,1726729850222,-607.09,0.00013437,2]
[338549111,1726729850232,-500.0,0.00013437,2]
[338549112,1726729850242,-958.68,0.00013437,2]
[338549113,1726729850252,-500.0,0.00013437,2]
[338549114,1726729850262,-500.0,0.00013437,2]
[338549115,1726729850274,-500.0,0.00013437,2]
[338549116,1726729850283,-602.98,0.00013437,2]
[338549117,1726729850293,-496.52538181,0.00013437,2]
[338549118,1726729850303,-500.0,0.00013437,2]
[338549119,1726729850312,-392.46761696,0.00013437,2]
[338549120,1726729850322,-500.0,0.00013437,2]
[338549121,1726729850332,-500.0,0.00013437,2]
[338549122,1726729850342,-500.0,0.00013437,2]
[338549123,1726729850351,-1019.83,0.00013437,2]
[338549124,1726729850364,-707.39,0.00013437,2]
[338549125,1726729850373,-548.93,0.00013437,2]
[338549126,1726729850383,-501.44,0.00013437,2]
[338549127,1726729850393,-609.88,0.00013437,2]
[338549128,1726729850403,-1020.69,0.00013437,2]
[338549129,1726729850412,-500.0,0.00013437,2]
[338549130,1726729850422,-500.0,0.00013437,2]
[338549131,1726729850433,-1254.91,0.00013437,2]
[338549132,1726729850442,-500.0,0.00013437,2]
[338549133,1726729850452,-500.0,0.00013437,2]
[338549134,1726729850462,-302.32560872,0.00013437,2]
[338549135,1726729850471,-500.0,0.00013437,2]
[338549136,1726729850481,-500.0,0.00013437,2]
[338549137,1726729850491,-500.0,0.00013437,2]
[338549138,1726729850500,-500.0,0.00013437,2]
[338549139,1726729850509,-500.0,0.00013437,2]
[338549140,1726729850519,-500.0,0.00013437,2]
[338549141,1726729850529,-669.44,0.00013437,2]
[338549142,1726729850538,-500.0,0.00013437,2]
[338549143,1726729850548,-1005.42,0.00013437,2]
[338549144,1726729850558,-772.82,0.00013437,2]
[338549145,1726729850568,-500.0,0.00013437,2]
[338549146,1726729850577,-1160.51,0.00013437,2]
[338549147,1726729850587,-500.0,0.00013437,2]
[338549148,1726729850597,-500.0,0.00013437,2]
[338549149,1726729850607,-500.0,0.00013437,2]
[338549150,1726729850616,-938.52,0.00013437,2]
[338549151,1726729850626,-500.0,0.00013437,2]
[338549152,1726729850636,-500.0,0.00013437,2]
[338549153,1726729850646,-500.0,0.00013437,2]
[338549154,1726729850656,-1211.18,0.00013437,2]
[338549155,1726729850665,-579.01,0.00013437,2]
[338549156,1726729850675,-500.0,0.00013437,2]
[338549157,1726729850685,-769.05,0.00013437,2]
[338549158,1726729850694,-500.0,0.00013437,2]
[338549159,1726729850704,-591.84,0.00013437,2]
[338549160,1726729850714,-500.0,0.00013437,2]
[338549161,1726729850724,-500.0,0.00013437,2]
[338549162,1726729850734,-680.86,0.00013437,2]
[338549163,1726729850744,-703.17,0.00013437,2]
[338549164,1726729850754,-568.03,0.00013437,2]
[338549165,1726729850764,-500.0,0.00013437,2]
[338549166,1726729850774,-500.0,0.00013437,2]
[338549167,1726729850787,-217.57435982,0.00013437,2]
[338549168,1726729850797,-1450.17,0.00013437,2]
[338549169,1726729850806,-500.0,0.00013437,2]
[338549170,1726729850816,-1817.67,0.00013437,2]
[338549171,1726729850826,-1076.37,0.00013437,2]
[338549172,1726729850837,-769.07,0.00013437,2]
[338549173,1726729850847,-500.0,0.00013437,2]
[338549174,1726729850857,-500.0,0.00013437,2]
[338549175,1726729850866,-500.0,0.00013437,2]
[338549176,1726729850876,-500.0,0.00013437,2]
[338549177,1726729850888,-500.0,0.00013437,2]
[338549178,1726729850898,-3157.28,0.00013437,2]
[338549179,1726729850908,-500.0,0.00013437,2]
[338549180,1726729851004,-1895.6,0.00013437,2]
[338549181,1726729851014,-500.0,0.00013437,2]
[338549182,1726729851023,-500.0,0.00013437,2]
[338549183,1726729851033,-1245.23,0.00013437,2]
[338549184,1726729851043,-500.0,0.00013437,2]
[338549185,1726729851052,-500.0,0.00013437,2]
[338549186,1726729851062,-500.0,0.00013437,2]
[338549187,1726729851071,-542.73,0.00013437,2]
[338549188,1726729851082,-500.0,0.00013437,2]
[338549189,1726729851091,-500.0,0.00013437,2]
[338549190,1726729851101,-500.0,0.00013437,2]
[338549191,1726729851111,-624.2,0.00013437,2]
[338549192,1726729851120,-500.0,0.00013437,2]
[338549193,1726729851130,-500.0,0.00013437,2]
[338549194,1726729851148,-500.0,0.00013437,2]
[338549195,1726729851157,-653.63,0.00013437,2]
[338549196,1726729851167,-500.0,0.00013437,2]
[338549197,1726729851177,-500.0,0.00013437,2]
[338549198,1726729851186,-761.62,0.00013437,2]
[338549199,1726729851196,-500.0,0.00013437,2]
[338549200,1726729851205,-9635.34,0.00013437,2]
[338549201,1726729851215,-500.0,0.00013437,2]
[338549202,1726729851224,-500.0,0.00013437,2]
[338549203,1726729851234,-500.0,0.00013437,2]
[338549204,1726729851242,-964.13,0.00013437,2]
[338549205,1726729851252,-500.0,0.00013437,2]
[338549206,1726729851261,-584.66,0.00013437,2]
[338549207,1726729851270,-21717.28,0.00013437,2]
[338549208,1726729851279,-1667.66,0.00013437,2]
[338549209,1726729851289,-2243.42,0.00013437,2]
[338549210,1726729851298,-890.98,0.00013437,2]
[338549211,1726729851307,-500.0,0.00013437,2]
[338549212,1726729851316,-804.38,0.00013437,2]
[338549213,1726729851325,-828.23,0.00013437,2]
[338549214,1726729851334,-500.0,0.00013437,2]
[338549215,1726729851343,-3580.03,0.00013437,2]
[338549216,1726729851353,-2808.52,0.00013437,2]
[338549217,1726729851365,-500.0,0.00013437,2]
[338549218,1726729851374,-1989.44,0.00013437,2]
[338549219,1726729851389,-631.78,0.00013437,2]
[338549220,1726729851398,-500.0,0.00013437,2]
[338549221,1726729851408,-500.0,0.00013437,2]
[338549222,1726729851416,-695.9,0.00013437,2]
[338549223,1726729851426,-500.0,0.00013437,2]
[338549224,1726729851436,-526.0,0.00013437,2]
[338549225,1726729851445,-2406.68,0.00013437,2]
[338549226,1726729851454,-5332.15,0.00013437,2]
[338549227,1726729851464,-696.82,0.00013437,2]
[338549228,1726729851473,-2150.52,0.00013437,2]
[338549229,1726729851482,-1456.85,0.00013437,2]
[338549230,1726729851491,-500.0,0.00013437,2]
[338549231,1726729851501,-583.25,0.00013437,2]
[338549232,1726729851510,-500.0,0.00013437,2]
[338549233,1726729851519,-500.0,0.00013437,2]
[338549234,1726729851528,-581.96,0.00013437,2]
[338549235,1726729851538,-1973.46,0.00013437,2]
[338549236,1726729851547,-2866.81,0.00013437,2]
[338549237,1726729851556,-500.0,0.00013437,2]
[338549238,1726729851565,-2334.84,0.00013437,2]
[338549239,1726729851574,-500.0,0.00013437,2]
[338549240,1726729851585,-500.0,0.00013437,2]
[338549241,1726729851594,-500.0,0.00013437,2]
[338549242,1726729851604,-500.0,0.00013437,2]
[338549243,1726729851613,-6425.55,0.00013437,2]
[338549244,1726729851623,-2384.09,0.00013437,2]
[338549245,1726729851632,-3292.95,0.00013437,2]
[338549246,1726729851642,-798.98,0.00013437,2]
[338549247,1726729851652,-710.8,0.00013437,2]
[338549248,1726729851661,-500.0,0.00013437,2]
[338549249,1726729851671,-610.46,0.00013437,2]
[338549250,1726729851680,-3431.93,0.00013437,2]
[338549251,1726729851689,-4029.15,0.00013437,2]
[338549252,1726729851698,-500.0,0.00013437,2]
[338549253,1726729851708,-2638.96,0.00013437,2]
[338549254,1726729851717,-2027.01,0.00013437,2]
[338549255,1726729851726,-860.94,0.00013437,2]
[338549256,1726729851735,-908.98,0.00013437,2]
[338549257,1726729851744,-1131.37,0.00013437,2]
[338549258,1726729851753,-855.56,0.00013437,2]
[338549259,1726729851763,-1058.01,0.00013437,2]
[338549260,1726729851772,-1341.34,0.00013437,2]
[338549261,1726729851781,-1764.63,0.00013437,2]
[338549262,1726729851791,-500.0,0.00013437,2]
[338549263,1726729851800,-1949.84,0.00013437,2]
[338549264,1726729851809,-500.0,0.00013437,2]
[338549265,1726729851818,-500.0,0.00013437,2]
[338549266,1726729851827,-500.0,0.00013437,2]
[338549267,1726729851836,-1962.54,0.00013437,2]
[338549268,1726729851845,-1570.35,0.00013437,2]
[338549269,1726729851857,-1176.38,0.00013437,2]
[338549270,1726729851867,-500.0,0.00013437,2]
[338549271,1726729851877,-1985.23,0.00013437,2]
[338549272,1726729851888,-1102.67,0.00013437,2]
[338549273,1726729851897,-500.0,0.00013437,2]
[338549274,1726729851906,-659.02,0.00013437,2]
[338549275,1726729851915,-500.0,0.00013437,2]
[338549276,1726729851924,-1667.56,0.00013437,2]
[338549277,1726729851934,-1782.24,0.00013437,2]
[338549278,1726729851943,-500.0,0.00013437,2]
[338549279,1726729851953,-2407.41,0.00013437,2]
[338549280,1726729851962,-2997.3,0.00013437,2]
[338549281,1726729851971,-1613.75,0.00013437,2]
[338549282,1726729851981,-1522.49,0.00013437,2]
[338549283,1726729851990,-665.0,0.00013438,2]
[338549284,1726729851999,-546.66,0.00013438,2]
[338549285,1726729852009,-500.0,0.00013438,2]
[338549286,1726729852018,-267.74213856,0.00013438,2]
[338549287,1726729852027,-767.2,0.00013438,2]
[338549288,1726729852037,-663.28,0.00013438,2]
[338549289,1726729852046,-870.4,0.00013438,2]
[338549290,1726729852055,-500.0,0.00013438,2]
[338549291,1726729852065,-680.45,0.00013438,2]
[338549292,1726729852075,-1114.58,0.00013438,2]
[338549293,1726729852084,-500.0,0.00013438,2]
[338549294,1726729852093,-500.0,0.00013438,2]
[338549295,1726729852103,-500.0,0.00013438,2]
[338549296,1726729852112,-862.69,0.00013438,2]
[338549297,1726729852122,-596.08,0.00013438,2]
[338549298,1726729852132,-500.0,0.00013438,2]
[338549299,1726729852143,-500.0,0.00013438,2]
[338549300,1726729852152,-1121.99,0.00013438,2]
[338549301,1726729852161,-500.0,0.00013438,2]
[338549302,1726729852171,-500.0,0.00013438,2]
[338549303,1726729852180,-500.0,0.00013438,2]
[338549304,1726729852189,-500.0,0.00013438,2]
[338549305,1726729852198,-500.0,0.00013438,2]
[338549306,1726729852207,-500.0,0.00013438,2]
[338549307,1726729852216,-950.29,0.00013438,2]
[338549308,1726729852225,-500.0,0.00013438,2]
[338549309,1726729852234,-500.0,0.00013438,2]
[338549310,1726729852244,-533.92,0.00013438,2]
[338549311,1726729852253,-500.0,0.00013438,2]
[338549312,1726729852262,-554.59,0.00013438,2]
[338549313,1726729852271,-500.0,0.00013438,2]
[338549314,1726729852281,-500.0,0.00013438,2]
[338549315,1726729852290,-500.0,0.00013438,2]
[338549316,1726729852300,-500.0,0.00013438,2]
[338549317,1726729852310,-500.0,0.00013438,2]
[338549318,1726729852319,-500.0,0.00013438,2]
[338549319,1726729852329,-500.0,0.00013438,2]
[338549320,1726729852339,-742.92,0.00013438,2]
[338549321,1726729852348,-500.0,0.00013438,2]
[338549322,1726729852358,-500.0,0.00013438,2]
[338549323,1726729852371,-500.0,0.00013438,2]
[338549324,1726729852380,-500.0,0.00013438,2]
[338549325,1726729852389,-500.0,0.00013438,2]
[338549326,1726729852398,-500.0,0.00013438,2]
[338549327,1726729852408,-500.0,0.00013438,2]